bitfinex/quotes_BTCUSD_20250527
["timestamp","ask_amount","ask_price","bid_price","bid_amount"]
[1748332922033,0.02801055,109700.0,109690.0,1.29415136]
[1748332922241,0.02801055,109700.0,109690.0,1.28503493]
[1748332922683,0.02801055,109700.0,109690.0,1.28503502]
[1748332922897,0.03712623,109700.0,109690.0,1.27591842]
[1748332923354,0.21944163,109700.0,109690.0,1.27591842]
[1748332923572,0.21032653,109700.0,109690.0,0.92300511]
[1748332923785,0.21032653,109700.0,109690.0,1.26041842]
[1748332924015,0.01889495,109700.0,109690.0,1.26953493]
[1748332924226,0.21032595,109700.0,109690.0,1.27551842]
[1748332924432,0.03712623,109700.0,109690.0,1.27551842]
[1748332924648,0.2194423,109700.0,109690.0,1.26041842]
[1748332925103,0.0371269,109700.0,109690.0,1.26953502]
[1748332925354,0.0371269,109700.0,109690.0,1.26041842]
[1748332925355,0.21032653,109700.0,109690.0,1.26041842]
[1748332926223,0.2194423,109700.0,109690.0,1.26041842]
[1748332927211,0.2194423,109700.0,109690.0,1.0780864]
[1748332927421,0.20121135,109700.0,109690.0,1.26037842]
[1748332928659,0.00977993,109700.0,109690.0,1.26037842]
[1748332928860,0.02801079,109700.0,109690.0,1.26949493]
[1748332928970,0.21032619,109700.0,109690.0,1.26037842]
[1748332929900,0.02801079,109700.0,109690.0,1.26037842]
[1748332930140,0.0006645,109700.0,109690.0,1.39357276]
[1748332930358,0.00977952,109700.0,109690.0,1.39357276]
[1748332930799,0.02801013,109700.0,109690.0,1.38445675]
[1748332931362,0.02801013,109700.0,109690.0,1.12394921]
[1748332931363,0.0006645,109700.0,109690.0,1.12394921]
[1748332931603,0.00977952,109700.0,109690.0,1.40268886]
[1748332932028,0.0006645,109700.0,109690.0,1.40268886]
[1748332932240,0.0006645,109700.0,109690.0,1.04977555]
[1748332932464,0.0006645,109700.0,109690.0,1.40268886]
[1748332933164,0.0006645,109700.0,109690.0,1.04977555]
[1748332933402,0.00977952,109700.0,109690.0,0.75822344]
[1748332933621,0.00977952,109700.0,109690.0,1.39357285]
[1748332933847,0.00977952,109700.0,109690.0,1.40268886]
[1748332934065,0.02800997,109700.0,109690.0,1.38445675]
[1748332934280,0.04194859,109700.0,109690.0,1.40268903]
[1748332934494,0.04194859,109700.0,109690.0,1.39357293]
[1748332934753,0.02800989,109700.0,109690.0,1.37534049]
[1748332934964,0.03712524,109700.0,109690.0,1.3935731]
[1748332935189,0.02800989,109700.0,109690.0,1.38445692]
[1748332935313,0.02800989,109700.0,109690.0,1.40268937]
[1748332935549,0.0006645,109700.0,109690.0,1.39357327]
[1748332935761,0.0280098,109700.0,109690.0,1.03154361]
[1748332936002,0.0280098,109700.0,109690.0,0.6797784]
[1748332936003,0.20121101,109700.0,109690.0,0.6797784]
[1748332936193,0.21741101,109700.0,109690.0,0.6797784]
[1748332936396,0.21741101,109700.0,109690.0,0.32686509]
[1748332936594,0.21741101,109700.0,109690.0,0.8893874]
[1748332936803,0.22594223,109700.0,109690.0,0.8893874]
[1748332937009,0.24300469,109700.0,109690.0,0.8893874]
[1748332937210,0.05157336,109700.0,109690.0,1.07171942]
[1748332937470,0.01772696,109700.0,109690.0,1.1246848]
[1748332937618,0.0006645,109700.0,109690.0,0.77815548]
[1748332937851,0.01889462,109700.0,109690.0,1.14018497]
[1748332938037,0.02800989,109700.0,109690.0,1.14018497]
[1748332938226,0.02800989,109700.0,109690.0,1.12195253]
[1748332938427,0.04624101,109700.0,109690.0,1.37065602]
[1748332938633,0.03712541,109700.0,109690.0,1.37065602]
[1748332939002,0.03712541,109700.0,109690.0,1.37977245]
[1748332939215,0.03712541,109700.0,109690.0,1.10645253]
[1748332939445,0.24000651,109700.0,109690.0,0.8893874]
[1748332939663,0.24912219,109700.0,109690.0,1.07171942]
[1748332939875,0.2103267,109700.0,109690.0,1.08671942]
[1748332940099,0.2103267,109700.0,109690.0,0.73380611]
[1748332940318,0.21032695,109700.0,109690.0,1.08671942]
[1748332940553,0.20121135,109700.0,109690.0,1.08671942]
[1748332942294,0.20121135,109700.0,109690.0,0.73380611]
[1748332942594,0.19209567,109700.0,109690.0,1.36003942]
[1748332943005,0.20789567,109700.0,109690.0,1.1627074]
[1748332944500,0.22495814,109700.0,109690.0,0.80979409]
[1748332944801,0.22495814,109700.0,109690.0,0.8893874]
[1748332945851,0.2334895,109700.0,109690.0,0.8893874]
[1748332946462,0.2334895,109700.0,109690.0,0.53647409]
[1748332946665,0.2334895,109700.0,109690.0,1.15944095]
[1748332946865,0.2485895,109700.0,109690.0,0.80652764]
[1748332947084,0.2485895,109700.0,109690.0,0.77008664]
[1748332947306,0.2334895,109700.0,109690.0,0.77008664]
[1748332947514,0.2334895,109700.0,109690.0,1.12299995]
[1748332948165,0.21642703,109700.0,109690.0,1.12299995]
[1748332948392,0.23348849,109700.0,109690.0,1.12299995]
[1748332948855,0.22495713,109700.0,109690.0,1.12299995]
[1748332950128,0.22495713,109700.0,109690.0,0.87675795]
[1748332950339,0.22495713,109700.0,109690.0,1.50768395]
[1748332950544,0.22495713,109700.0,109690.0,0.67400895]
[1748332950965,0.22495713,109700.0,109690.0,0.32109564]
[1748332951406,0.22495713,109700.0,109690.0,1.17491664]
[1748332951806,0.22495713,109700.0,109690.0,0.32109564]
[1748332955017,0.26830634,109700.0,109690.0,0.32109564]
[1748332955239,0.22495713,109700.0,109690.0,0.32109564]
[1748332959348,0.23348677,109700.0,109690.0,1.33619695]
[1748332959594,0.21768677,109700.0,109690.0,1.35129695]
[1748332959818,0.23288677,109700.0,109690.0,1.35129695]
[1748332960041,0.21582531,109700.0,109690.0,0.98328364]
[1748332960259,0.21582531,109700.0,109690.0,1.33619695]
[1748332960486,0.20729567,109700.0,109690.0,1.33619695]
[1748332960704,0.22435464,109700.0,109690.0,1.33619695]
[1748332961128,0.22435464,109700.0,109690.0,1.05118795]
[1748332961337,0.22435464,109700.0,109690.0,0.82175095]
[1748332962658,0.22435464,109700.0,109690.0,0.67400895]
[1748332963017,0.23288532,109700.0,109690.0,0.67400895]
[1748332964957,0.27547735,109700.0,109690.0,0.32109564]
[1748332965172,0.23288532,109700.0,109690.0,0.67400895]
[1748332965814,0.23288532,109700.0,109690.0,0.32109564]
[1748332966033,0.23288532,109700.0,109690.0,0.67400895]
[1748332969244,0.23288532,109700.0,109690.0,0.32109564]
[1748332969463,0.23288532,109700.0,109690.0,0.67400895]
[1748332970136,0.23288532,109700.0,109690.0,0.32109564]
[1748332970396,0.23288532,109700.0,109690.0,0.67400895]
[1748332971614,0.23288532,109700.0,109690.0,0.32109564]
[1748332971846,0.21768532,109700.0,109690.0,1.57747695]
[1748332972087,0.21768532,109700.0,109690.0,0.96177364]
[1748332972291,0.21768532,109700.0,109690.0,1.31468695]
[1748332972292,0.23308532,109700.0,109690.0,1.31468695]
[1748332973891,0.23308532,109700.0,109690.0,0.97020795]
[1748332974218,0.21768532,109700.0,109690.0,0.97020795]
[1748332975605,0.21768532,109700.0,109690.0,1.15253997]
[1748332976050,0.21768532,109700.0,109690.0,1.24352795]
[1748332976494,0.20915464,109700.0,109690.0,1.24352795]
[1748332976929,0.20915464,109700.0,109690.0,0.97020795]
[1748332977400,0.20915464,109700.0,109690.0,0.61729464]
[1748332977630,0.20915464,109700.0,109690.0,0.97020795]
[1748332979174,0.20915464,109700.0,109690.0,0.61729464]
[1748332979614,0.20915464,109700.0,109690.0,0.97020795]
[1748332981587,0.20915464,109700.0,109690.0,0.61729464]
[1748332981788,0.20915464,109700.0,109690.0,0.97020795]
[1748332981926,0.20915464,109700.0,109690.0,0.93496247]
[1748332984375,0.01772347,109700.0,109690.0,1.11729449]
[1748332984601,0.02801031,109700.0,109690.0,1.249289]
[1748332984808,0.21944148,109700.0,109690.0,0.92250499]
[1748332985016,0.21944148,109700.0,109690.0,1.249289]
[1748332985433,0.21032646,109700.0,109690.0,0.92250499]
[1748332985655,0.21032646,109700.0,109690.0,1.249289]
[1748332985874,0.21032646,109700.0,109690.0,0.93162117]
[1748332986089,0.21032646,109700.0,109690.0,0.92250499]
[1748332986301,0.21032646,109700.0,109690.0,0.93162117]
[1748332986519,0.20121119,109700.0,109690.0,1.24017282]
[1748332986952,0.20121119,109700.0,109690.0,1.249289]
[1748332987449,0.21721119,109700.0,109690.0,0.60129464]
[1748332987664,0.21721119,109700.0,109690.0,1.20798247]
[1748332988122,0.21721119,109700.0,109690.0,0.89031464]
[1748332988332,0.20121119,109700.0,109690.0,1.20798247]
[1748332988549,0.20121119,109700.0,109690.0,1.22328247]
[1748332988757,0.20121119,109700.0,109690.0,0.90561464]
[1748332988976,0.20121119,109700.0,109690.0,1.20798247]
[1748332989460,0.20121119,109700.0,109690.0,1.22388247]
[1748332989681,0.20121119,109700.0,109690.0,1.77887907]
[1748332989885,0.1829799,109700.0,109690.0,1.76976247]
[1748332990121,0.1829799,109700.0,109690.0,1.81413854]
[1748332990342,0.1829799,109700.0,109690.0,1.99647056]
[1748332990590,0.1829799,109700.0,109690.0,2.00558707]
[1748332990880,0.0006645,109700.0,109690.0,1.65265977]
[1748332991119,0.00977985,109700.0,109690.0,2.1133649]
[1748332991342,0.02801055,109700.0,109690.0,1.7604376]
[1748332991801,0.01889495,109700.0,109690.0,2.1133649]
[1748332992031,0.07555295,109720.0,109710.0,0.57152848]
[1748332992293,0.06643885,109720.0,109710.0,1.59478516]
[1748332992521,0.08349842,109720.0,109710.0,1.69344507]
[1748332992747,0.1108394,109720.0,109710.0,2.04637237]
[1748332992964,0.07555237,109720.0,109710.0,2.04637237]
[1748332993180,0.07593,109720.0,109710.0,2.04637237]
[1748332993406,0.08504378,109720.0,109710.0,2.04737237]
[1748332993879,0.09415788,109720.0,109710.0,2.04737237]
[1748332994112,0.27644005,109720.0,109710.0,2.04737246]
[1748332994349,0.27644005,109720.0,109710.0,1.82861486]
[1748332994568,0.24909939,109720.0,109710.0,2.02002849]
[1748332994780,0.24909939,109720.0,109710.0,2.0329523]
[1748332995014,0.24909939,109720.0,109710.0,2.04406723]
[1748332995238,0.24909939,109720.0,109710.0,1.47531137]
[1748332995463,0.23998545,109720.0,109710.0,1.73869311]
[1748332995696,0.25508545,109720.0,109710.0,1.80683211]
[1748332995924,0.20773237,109720.0,109710.0,1.82183211]
[1748332997228,0.20773237,109720.0,109710.0,1.81983211]
[1748332997447,0.20773237,109720.0,109710.0,1.82083211]
[1748332997901,0.20773237,109720.0,109710.0,1.81883211]
[1748332998085,0.20773237,109720.0,109710.0,1.81983211]
[1748332998315,0.20773237,109720.0,109710.0,2.02036034]
[1748332998316,0.20773221,109720.0,109710.0,2.02036034]
[1748332998530,0.20773221,109720.0,109710.0,2.02947486]
[1748332998748,0.22596,109720.0,109710.0,2.04507486]
[1748332999603,0.22596,109720.0,109710.0,1.69214756]
[1748332999813,0.22596,109720.0,109710.0,2.04507486]
[1748333000467,0.22596,109720.0,109710.0,2.00213089]
[1748333000687,0.21684623,109720.0,109710.0,2.02947489]
[1748333000895,0.20773229,109720.0,109710.0,2.02947489]
[1748333001567,0.20773229,109720.0,109710.0,2.04770459]
[1748333001776,0.20773229,109720.0,109710.0,2.06350459]
[1748333002260,0.02544979,109720.0,109710.0,2.21810904]
[1748333002480,0.04367733,109720.0,109710.0,2.17127918]
[1748333002709,0.04367733,109720.0,109710.0,1.89795918]
[1748333002930,0.24418762,109720.0,109710.0,2.74735935]
[1748333003130,0.24418762,109720.0,109710.0,2.75647379]
[1748333003592,0.2350741,109720.0,109710.0,2.74735935]
[1748333004826,0.2350741,109720.0,109710.0,2.73824483]
[1748333005046,0.05279193,109720.0,109710.0,2.74735927]
[1748333005266,0.2350741,109720.0,109710.0,2.74735927]
[1748333005481,0.2350741,109720.0,109710.0,2.39443197]
[1748333005706,0.2350741,109720.0,109710.0,2.38531753]
[1748333005893,0.2350741,109720.0,109710.0,2.73824483]
[1748333006322,0.2350741,109720.0,109710.0,2.74735927]
[1748333006546,0.03456307,109720.0,109710.0,2.75647362]
[1748333006770,0.04367684,109720.0,109710.0,2.75647362]
[1748333006989,0.05279078,109720.0,109710.0,2.75647362]
[1748333007210,0.05279078,109720.0,109710.0,2.40354632]
[1748333007432,0.02544946,109720.0,109710.0,2.75647362]
[1748333007686,0.04367692,109720.0,109710.0,2.75647362]
[1748333008128,0.04367684,109720.0,109710.0,3.05297362]
[1748333008368,0.0163361,109720.0,109710.0,3.05297362]
[1748333008712,0.22156144,109730.0,109720.0,0.56399619]
[1748333008959,0.03018204,109730.0,109720.0,4.78162034]
[1748333009157,0.0392949,109730.0,109720.0,3.95280204]
[1748333009370,0.0392949,109730.0,109720.0,3.94368852]
[1748333009371,0.2215612,109730.0,109720.0,3.94368852]
[1748333009589,0.20333557,109730.0,109720.0,3.20604656]
[1748333009826,0.20333557,109730.0,109720.0,3.55902334]
[1748333010041,0.20333557,109730.0,109720.0,3.56813744]
[1748333010709,0.20333557,109730.0,109720.0,3.55902334]
[1748333010918,0.20333557,109730.0,109720.0,3.54262334]
[1748333011583,0.20337557,109730.0,109720.0,3.18969604]
[1748333011823,0.20337557,109730.0,109720.0,3.54262334]
[1748333012246,0.21947557,109730.0,109720.0,1.80191548]
[1748333012482,0.23567557,109730.0,109720.0,2.30879178]
[1748333013591,0.23567557,109730.0,109720.0,2.03555178]
[1748333013802,0.21947557,109730.0,109720.0,2.30879178]
[1748333014017,0.21947557,109730.0,109720.0,1.95586448]
[1748333014238,0.25041642,109730.0,109720.0,2.30879178]
[1748333015136,0.25041642,109730.0,109720.0,1.68262448]
[1748333015345,0.25041642,109730.0,109720.0,1.95586448]
[1748333015604,0.25041642,109730.0,109720.0,1.66187248]
[1748333015832,0.27596515,109730.0,109720.0,1.04114748]
[1748333016051,0.27596515,109730.0,109720.0,0.73205748]
[1748333016246,0.27596515,109730.0,109720.0,0.63557448]
[1748333016450,0.27596515,109730.0,109720.0,0.44664848]
[1748333016660,0.27596515,109730.0,109720.0,0.34004948]
[1748333017728,0.32266727,109730.0,109720.0,4.948e-05]
[1748333017938,0.36551071,109730.0,109720.0,4.948e-05]
[1748333018187,0.71843801,109730.0,109720.0,4.948e-05]
[1748333018406,0.3920604,109730.0,109720.0,4.948e-05]
[1748333018619,0.7449877,109730.0,109720.0,4.948e-05]
[1748333018840,0.7449877,109730.0,109680.0,0.002]
[1748333018841,0.24710548,109690.0,109680.0,0.002]
[1748333019063,0.35368355,109690.0,109680.0,0.0020495]
[1748333019292,0.36219977,109690.0,109680.0,0.0020495]
[1748333020413,0.35368355,109690.0,109680.0,0.0030495]
[1748333020621,0.35368355,109690.0,109680.0,0.0040495]
[1748333021038,0.35368355,109690.0,109680.0,0.0030495]
[1748333021938,0.4185804,109690.0,109680.0,0.0030495]
[1748333022366,0.43561291,109690.0,109680.0,0.0030495]
[1748333022780,0.4185804,109690.0,109680.0,0.0030495]
[1748333024795,0.33665104,109690.0,109680.0,0.0030495]
[1748333026255,0.20056463,109690.0,109680.0,0.0030495]
[1748333026464,0.20056463,109690.0,109680.0,1.65936002]
[1748333026669,0.20056463,109690.0,109680.0,1.6570808]
[1748333027106,0.00911593,109690.0,109680.0,1.603399]
[1748333027310,0.20966212,109700.0,109690.0,0.55606479]
[1748333027524,0.20054669,109700.0,109690.0,2.37109683]
[1748333027734,0.20054669,109700.0,109690.0,2.00219128]
[1748333027949,0.21877756,109700.0,109690.0,2.02660762]
[1748333028151,0.20966196,109700.0,109690.0,2.07350439]
[1748333028394,0.20966196,109700.0,109690.0,2.08262082]
[1748333028590,0.21166196,109700.0,109690.0,2.07350448]
[1748333028878,0.20254669,109700.0,109690.0,1.86357786]
[1748333029083,0.20254669,109700.0,109690.0,2.04590988]
[1748333029283,0.19343117,109700.0,109690.0,1.51165056]
[1748333029505,0.19343117,109700.0,109690.0,1.1842793]
[1748333030450,0.22467202,109700.0,109690.0,0.001]
[1748333030925,0.20897202,109700.0,109690.0,0.953992]
[1748333031152,0.20797202,109700.0,109690.0,0.851585]
[1748333031355,0.22367202,109700.0,109690.0,0.49479]
[1748333031582,0.22167202,109700.0,109690.0,0.49479]
[1748333031804,0.22167202,109700.0,109690.0,0.49579]
[1748333032223,0.22167202,109700.0,109690.0,0.341]
[1748333032860,0.22167202,109700.0,109690.0,0.34]
[1748333034866,0.31121758,109700.0,109690.0,0.34]
[1748333035720,0.32771758,109700.0,109690.0,0.34]
[1748333036179,0.32871758,109700.0,109690.0,0.34]
[1748333036600,0.33071758,109700.0,109690.0,0.34]
[1748333038577,0.42071758,109700.0,109690.0,0.34]
[1748333040635,0.46681971,109700.0,109690.0,0.34]
[1748333041004,0.40421758,109700.0,109690.0,0.34]
[1748333041217,0.28443117,109700.0,109690.0,1.9953513]
[1748333041642,0.28443117,109700.0,109690.0,1.6822443]
[1748333041899,0.29897202,109700.0,109690.0,1.5492443]
[1748333042100,0.29797202,109700.0,109690.0,1.5492443]
[1748333042538,0.29597202,109700.0,109690.0,1.5492443]
[1748333043384,0.29597202,109700.0,109690.0,1.196317]
[1748333043602,0.20597202,109700.0,109690.0,1.5492443]
[1748333043968,0.20597202,109700.0,109690.0,0.9671703]
[1748333045034,0.20597202,109700.0,109690.0,0.34]
[1748333045035,0.31201758,109700.0,109690.0,0.34]
[1748333045251,0.32841758,109700.0,109690.0,0.34]
[1748333045463,0.34545009,109700.0,109690.0,0.34]
[1748333045654,0.34022009,109700.0,109690.0,0.34]
[1748333046337,0.43022009,109700.0,109690.0,0.34]
[1748333046552,0.43869848,109700.0,109690.0,0.34]
[1748333047880,0.44738,109700.0,109690.0,0.34]
[1748333049487,0.53690151,109700.0,109690.0,0.34]
[1748333050786,0.54690151,109700.0,109690.0,0.34]
[1748333051305,0.45738,109700.0,109690.0,0.34]
[1748333051541,0.44738,109700.0,109690.0,0.6929273]
[1748333051761,0.44738,109700.0,109690.0,0.34]
[1748333053692,0.45738,109700.0,109690.0,0.34]
[1748333054566,0.46827767,109700.0,109690.0,0.34]
[1748333054773,0.55779918,109700.0,109690.0,0.34]
[1748333055622,0.54076667,109700.0,109690.0,0.34]
[1748333055855,0.80564828,109700.0,109690.0,0.34]
[1748333056517,0.80564828,109700.0,109690.0,0.31863811]
[1748333056733,0.83121938,109700.0,109690.0,0.31863811]
[1748333057409,0.83125938,109700.0,109690.0,0.31863811]
[1748333058057,0.19144845,109690.0,109680.0,0.0020495]
[1748333058281,0.40231552,109690.0,109680.0,0.0020495]
[1748333058502,0.41685637,109690.0,109680.0,0.0020495]
[1748333058729,0.43390377,109690.0,109680.0,0.0020495]
[1748333058945,0.45348296,109690.0,109680.0,0.0020495]
[1748333059158,0.43768296,109690.0,109680.0,0.0020495]
[1748333062043,0.34816145,109690.0,109680.0,0.0020495]
[1748333062235,0.34820145,109690.0,109680.0,0.0020495]
[1748333063970,0.36430145,109690.0,109680.0,0.0020495]
[1748333065239,0.38986401,109690.0,109680.0,0.0020495]
[1748333066063,0.36430145,109690.0,109680.0,0.0020495]
[1748333066285,0.34820145,109690.0,109680.0,0.0020495]
[1748333066501,0.34820145,109690.0,109680.0,0.6949768]
[1748333066720,0.34820145,109690.0,109680.0,0.3420495]
[1748333066939,0.4112632,109690.0,109680.0,0.3420495]
[1748333067376,0.40036553,109690.0,109680.0,0.3420495]
[1748333067597,0.41616553,109690.0,109680.0,0.3420495]
[1748333067805,0.50568704,109690.0,109680.0,0.3420495]
[1748333068237,0.4270632,109690.0,109680.0,0.3420495]
[1748333068437,0.5012632,109690.0,109680.0,0.3420495]
[1748333069106,0.49036553,109690.0,109680.0,0.3420495]
[1748333069316,0.49036553,109690.0,109680.0,0.35048813]
[1748333069518,0.4812491,109690.0,109680.0,0.35048813]
[1748333069742,0.49036553,109690.0,109680.0,0.35048813]
[1748333069953,0.57988704,109690.0,109680.0,0.35048813]
[1748333070181,0.59078471,109690.0,109680.0,0.35048813]
[1748333071715,0.60618471,109690.0,109680.0,0.35048813]
[1748333073542,0.59078471,109690.0,109680.0,0.35048813]
[1748333073996,0.50078471,109690.0,109680.0,0.35048813]
[1748333074199,0.51688471,109690.0,109680.0,0.35048813]
[1748333076071,0.50078471,109690.0,109680.0,0.35048813]
[1748333076687,0.6846632,109690.0,109680.0,0.35048813]
[1748333079282,0.45194274,109690.0,109680.0,0.35048813]
[1748333079500,0.4112632,109690.0,109680.0,0.35048813]
[1748333079920,0.5012632,109690.0,109680.0,0.35048813]
[1748333080131,0.8002423,109690.0,109680.0,0.35048813]
[1748333080350,0.84026748,109690.0,109680.0,0.35048813]
[1748333085050,0.85482799,109690.0,109680.0,0.35048813]
[1748333085691,0.85485646,109690.0,109680.0,0.35048813]
[1748333085988,0.54143128,109690.0,109680.0,0.35048813]
[1748333086209,0.81483128,109690.0,109680.0,0.35048813]
[1748333089079,0.54143128,109690.0,109680.0,0.35048813]
[1748333089304,0.81483128,109690.0,109680.0,0.35048813]
[1748333089513,0.81483128,109690.0,109680.0,0.3420495]
[1748333089865,0.89345512,109690.0,109680.0,0.3420495]
[1748333090270,0.62005512,109690.0,109680.0,0.3420495]
[1748333090486,0.89345512,109690.0,109680.0,0.3420495]
[1748333090960,0.80393361,109690.0,109680.0,0.3420495]
[1748333092375,0.77168053,109690.0,109680.0,0.3420495]
[1748333092577,0.78678053,109690.0,109680.0,0.3420495]
[1748333092989,0.77168053,109690.0,109680.0,0.3420495]
[1748333093985,0.68168053,109690.0,109680.0,0.3420495]
[1748333095045,1.14932934,109690.0,109680.0,0.0020495]
[1748333095263,0.79640204,109690.0,109680.0,0.0020495]
[1748333095719,0.88640204,109690.0,109680.0,0.0020495]
[1748333095927,0.89140204,109690.0,109680.0,0.0020495]
[1748333096139,0.87684153,109690.0,109680.0,0.0020495]
[1748333098423,1.23434098,109690.0,109680.0,0.0020495]
[1748333099926,0.2006012,109670.0,109660.0,0.34]
[1748333100069,1.1604564,109670.0,109660.0,0.34049879]
[1748333100608,1.13678173,109670.0,109660.0,0.34049879]
[1748333101544,1.17095767,109670.0,109660.0,0.34049879]
[1748333101748,1.54968497,109670.0,109660.0,0.00049879]
[1748333102127,1.56422582,109670.0,109660.0,0.00049879]
[1748333102715,1.55329964,109670.0,109660.0,0.00049879]
[1748333102999,1.28989385,109670.0,109660.0,0.00049879]
[1748333103551,1.28997385,109670.0,109660.0,0.00049879]
[1748333103743,1.29097385,109670.0,109660.0,0.00049879]
[1748333104148,1.29297385,109670.0,109660.0,0.00049879]
[1748333104754,1.63590115,109670.0,109660.0,0.00049879]
[1748333105512,1.31378252,109670.0,109660.0,0.00049879]
[1748333105714,1.66670982,109670.0,109660.0,0.00049879]
[1748333105900,1.31378252,109670.0,109660.0,0.00049879]
[1748333106665,0.53482252,109670.0,109660.0,0.00049879]
[1748333106866,1.32382252,109670.0,109660.0,0.00198879]
[1748333107188,1.30802252,109670.0,109660.0,0.00198879]
[1748333107597,1.30435469,109670.0,109660.0,0.00198879]
[1748333109920,1.30439469,109670.0,109660.0,0.00198879]
[1748333110779,1.29439469,109670.0,109660.0,0.00198879]
[1748333111017,1.30439469,109670.0,109660.0,0.00198879]
[1748333111244,0.51535469,109670.0,109660.0,0.00198879]
[1748333111556,1.30439469,109670.0,109660.0,0.00198879]
[1748333112707,1.33658274,109670.0,109660.0,0.00198879]
[1748333112918,0.44802123,109670.0,109660.0,0.00198879]
[1748333113136,0.44802123,109670.0,109660.0,0.01698879]
[1748333113137,0.40734213,109670.0,109660.0,0.01698879]
[1748333113350,0.39280128,109670.0,109660.0,0.03268879]
[1748333113778,0.37321935,109670.0,109660.0,0.03268879]
[1748333113991,0.3877602,109670.0,109660.0,0.03268879]
[1748333114989,0.37321935,109670.0,109660.0,0.03268879]
[1748333115146,0.28367379,109670.0,109660.0,0.38561609]
[1748333116000,0.22067707,109670.0,109660.0,0.38561609]
[1748333116206,0.21967707,109670.0,109660.0,0.38561609]
[1748333116405,0.21767707,109670.0,109660.0,0.38561609]
[1748333116872,0.21767707,109670.0,109660.0,0.03268879]
[1748333117272,0.2450186,109670.0,109660.0,0.38561609]
[1748333118788,0.21767707,109670.0,109660.0,0.38561609]
[1748333119808,0.21767707,109670.0,109660.0,0.65905609]
[1748333120658,0.21767707,109670.0,109660.0,0.03268879]
[1748333120906,0.32176348,109670.0,109660.0,0.01698879]
[1748333121085,0.33806348,109670.0,109660.0,0.00198879]
[1748333121307,0.41745016,109670.0,109660.0,0.00198879]
[1748333122193,0.43275016,109670.0,109660.0,0.00198879]
[1748333122405,0.46830029,109670.0,109660.0,0.00198879]
[1748333122612,0.47130029,109670.0,109660.0,0.00198879]
[1748333123470,0.99064222,109670.0,109660.0,0.00198879]
[1748333124799,1.05363166,109670.0,109660.0,0.00198879]
[1748333125427,1.05363166,109670.0,109620.0,0.060766]
[1748333125428,0.2006744,109630.0,109620.0,0.060766]
[1748333125649,0.2006744,109630.0,109620.0,0.33425557]
[1748333125864,0.2006744,109630.0,109620.0,0.73814287]
[1748333126082,0.21775027,109630.0,109620.0,0.37077687]
[1748333126299,0.21775027,109630.0,109620.0,0.71077687]
[1748333126510,0.3536508,109630.0,109620.0,0.01784957]
[1748333126868,0.3556508,109630.0,109620.0,0.00204957]
[1748333127079,0.38073232,109630.0,109620.0,0.00204957]
[1748333127373,0.36433232,109630.0,109620.0,0.00204957]
[1748333127610,0.23175186,109610.0,109600.0,0.06169571]
[1748333127835,1.95715366,109610.0,109600.0,0.05804082]
[1748333128074,2.06638577,109610.0,109600.0,0.05804082]
[1748333128310,0.2152885,109590.0,109580.0,0.002]
[1748333128520,0.94624136,109590.0,109580.0,0.00204958]
[1748333128740,1.06283874,109590.0,109580.0,0.00204958]
[1748333128955,1.12834617,109590.0,109580.0,0.00204958]
[1748333129174,1.14464617,109590.0,109580.0,0.00204958]
[1748333129402,1.19411368,109590.0,109580.0,0.00204958]
[1748333129626,1.19411368,109590.0,109580.0,0.00404958]
[1748333129854,1.21736344,109590.0,109580.0,0.00404958]
[1748333130126,0.86443614,109590.0,109580.0,0.00204958]
[1748333130355,1.22548712,109590.0,109580.0,0.00204958]
[1748333130578,1.20216137,109590.0,109580.0,0.00204958]
[1748333130757,1.20216137,109590.0,109580.0,0.00304958]
[1748333131001,0.42864137,109590.0,109580.0,0.00304958]
[1748333131265,1.77560288,109590.0,109580.0,0.00304958]
[1748333131480,1.77003464,109590.0,109580.0,0.00304958]
[1748333132490,2.38868952,109590.0,109580.0,0.00304958]
[1748333132866,2.07871616,109590.0,109580.0,0.00304958]
[1748333134093,2.10951755,109590.0,109580.0,0.00304958]
[1748333134378,2.10777457,109590.0,109580.0,0.00304958]
[1748333134598,0.57491435,109590.0,109580.0,0.00304958]
[1748333134813,0.46039284,109590.0,109580.0,0.00304958]
[1748333135068,0.44585199,109590.0,109580.0,0.00304958]
[1748333135729,0.44771132,109590.0,109580.0,0.01804958]
[1748333135977,0.43317047,109590.0,109580.0,0.01804958]
[1748333136187,0.52509716,109590.0,109580.0,0.01804958]
[1748333136635,0.43617047,109590.0,109580.0,0.01804958]
[1748333136836,0.40536908,109590.0,109580.0,0.35804958]
[1748333136961,0.40536908,109590.0,109580.0,0.37424958]
[1748333137157,0.31582352,109590.0,109580.0,0.69290446]
[1748333137364,0.22699674,109590.0,109580.0,1.46240946]
[1748333137589,0.20374799,109590.0,109580.0,1.15022746]
[1748333138067,0.20474799,109590.0,109580.0,1.15022746]
[1748333138217,0.20474799,109590.0,109580.0,1.17760346]
[1748333138423,0.01312417,109590.0,109580.0,1.46900962]
[1748333138627,0.01312417,109590.0,109580.0,1.50174508]
[1748333138628,0.03137292,109590.0,109580.0,1.50174508]
[1748333138829,0.04049759,109590.0,109580.0,1.50174508]
[1748333138994,0.04962251,109590.0,109580.0,1.50174508]
[1748333139380,0.20474782,109590.0,109580.0,0.788516]
[1748333139606,0.20474782,109590.0,109580.0,0.90510243]
[1748333140413,0.20474782,109590.0,109580.0,0.58644755]
[1748333140627,0.20474782,109590.0,109580.0,0.90510243]
[1748333141915,0.20474782,109590.0,109580.0,1.17716304]
[1748333142164,0.20474798,109590.0,109580.0,1.00809775]
[1748333143344,0.24347242,109590.0,109580.0,0.01904958]
[1748333143795,0.26035254,109590.0,109580.0,0.02797188]
[1748333143992,0.26035254,109590.0,109580.0,0.01904958]
[1748333144182,0.26035254,109590.0,109580.0,0.01804958]
[1748333144449,0.2176281,109590.0,109580.0,1.22052646]
[1748333144660,0.2176281,109590.0,109580.0,0.92066146]
[1748333144867,0.2186281,109590.0,109580.0,0.93696146]
[1748333145084,0.20174798,109590.0,109580.0,0.93696146]
[1748333145378,0.20174798,109590.0,109580.0,0.59022658]
[1748333145603,0.20174798,109590.0,109580.0,0.35804958]
[1748333145791,0.21864515,109590.0,109580.0,0.35804958]
[1748333146417,0.21864515,109590.0,109580.0,0.34599264]
[1748333148953,0.21868515,109590.0,109580.0,0.34599264]
[1748333151186,0.21868515,109590.0,109580.0,0.69714752]
[1748333151569,0.21868515,109590.0,109580.0,0.68084752]
[1748333152228,0.21868515,109590.0,109580.0,0.36219264]
[1748333153159,0.21868515,109590.0,109580.0,0.34599264]
[1748333155368,0.21968515,109590.0,109580.0,0.34599264]
[1748333155595,0.25980331,109590.0,109580.0,0.34599264]
[1748333155790,0.00912641,109570.0,109560.0,1.2430428]
[1748333156018,0.19165812,109570.0,109560.0,2.06533646]
[1748333156244,0.20855529,109570.0,109560.0,2.09271746]
[1748333156439,0.20855529,109570.0,109560.0,2.27526583]
[1748333156440,0.21768162,109570.0,109560.0,2.27526583]
[1748333156690,0.20855529,109570.0,109560.0,2.27526583]
[1748333156939,0.20855529,109570.0,109560.0,2.10366558]
[1748333157399,0.01825041,109580.0,109570.0,0.54989896]
[1748333157637,0.02737591,109580.0,109570.0,2.64443152]